Cogmind - Beta 13 @@@ ROGUE MODE // 2024.03.01 @ 11:56:14 Player: Skitcher Result: Self-destructed Performance ------------- Evolutions (1) 500 Regions Visited (2) 400 Robots Destroyed (42) 210 Value Destroyed (766) 766 Prototype IDs (1) 20 Alien Tech Used (0) 0 Bonus (11) 11 TOTAL SCORE: 1907 Bonus ------- High Alert Combat Kills 11 Cogmind --------- Core Integrity 300/400 Matter 157/300 Energy 91/100 System Corruption 0% Temperature Cool (0) Movement Core (50) Location -9/Materials Parts ------- > --- POWER (3) -------- (None) > --- PROPULSION (2) --- (None) > --- UTILITY (2) ------ Sensor Array > --- WEAPON (2) ------- (None) > --- INVENTORY (5) ---- Light Treads Light Treads Heat Sink Particle Cannon Light Cannon Peak State ------------ > --- POWER ------------ Light Ion Engine > --- PROPULSION ------- (None) > --- UTILITY ---------- Sensor Array Light Armor Plating > --- WEAPON ----------- Improved Assault Rifle Improved Assault Rifle > --- INVENTORY -------- Light Treads Light Treads Heat Sink Particle Gun Particle Gun [Rating: 9] Favorites ----------- Power Light Ion Engine Engine Light Ion Engine Propulsion Light Treads Treads Light Treads Utility Light Armor Plating Device Sensor Array Storage Small Storage Unit Protection Light Armor Plating Weapon Light Cannon Energy Gun Shock Rifle Energy Cannon Particle Cannon Ballistic Gun Light Assault Rifle Ballistic Cannon Light Cannon Launcher Rocket Launcher Build | -11 -10 -9 ------- Run | Yrd Mat Mat Slots Evolved 2 | . . 2 Power 2 | . . 2 Propulsion . | . . . Utility . | . . . Weapon . | . . . Parts Attached 20 | 6 11 3 Power 3 | 1 2 . Engine 3 | 1 2 . Core . | . . . Reactor . | . . . Propulsion 2 | 2 . . Treads 2 | 2 . . Leg . | . . . Wheel . | . . . Hover . | . . . Flight . | . . . Utility 4 | 1 3 . Device 2 | . 2 . Storage 1 | 1 . . Processor . | . . . Hackware . | . . . Protection 1 | . 1 . Artifact . | . . . Weapon 11 | 2 6 3 Energy Gun 3 | . 2 1 Energy Cannon 1 | . . 1 Ballistic Gun 5 | 2 3 . Ballistic Cannon 1 | . 1 . Launcher 1 | . . 1 Special Weapon . | . . . Impact Weapon . | . . . Slashing Weapon . | . . . Piercing Weapon . | . . . Special Melee Weapon . | . . . Unidentified Prototypes 1 | . 1 . Parts Lost 5 | . 1 4 Power 1 | . . 1 Propulsion . | . . . Utility 1 | . . 1 Weapon 3 | . 1 2 Highest Loss Streak 3 | . 1 3 To Critical Strikes . | . . . Average Slot Usage (%) 66 | . 77 50 Engine 11 | . 14 7 Treads 8 | . 13 . Device 8 | . 7 11 Storage 4 | . 6 . Protection 9 | . 8 10 Energy Gun 3 | . 3 4 Energy Cannon 1 | . . 3 Ballistic Gun 11 | . 17 2 Ballistic Cannon 6 | . 4 9 Naked Turns . | . . . Heaviest Build 14 | 11 13 14 Greatest Support 40 | 40 40 3 Greatest Overweight (x) 4 | . 4 4 Average Overweight (x) 2 | . 2 3 Largest Inventory Capacity 8 | 8 8 5 Average Capacity 5 | 7 6 5 Most Carried 6 | 3 6 5 Average Carried 3 | . 3 4 Final Capacity 8 | 8 5 5 Final Carried 5 | . 5 5 Class Distribution -------------------- 100% | Mutant Dominant Class ---------------- Mutant | -10/Materials Mutant | -9/Materials Resources | -11 -10 -9 ----------- Run | Yrd Mat Mat Matter Collected 657 | 188 330 139 Remotely . | . . . Salvage Created 1014 | . 539 475 Parts 82 | . 30 52 Haulers Intercepted 2 | . . 2 Recyclers Shooed 1 | . 1 . Parts Field Recycled . | . . . Retrieved Matter . | . . . Parts Self-Destructed . | . . . Prevented . | . . . Kills | -11 -10 -9 ------- Run | Yrd Mat Mat Combat Hostiles Destroyed 24 | . 12 12 Guns 15 | . 12 3 Cannons 6 | . . 6 AOE 3 | . . 3 Classes Destroyed 10 | . 4 6 Worker 3 | . . 3 Builder 3 | . . 3 Tunneler 1 | . . 1 Hauler 2 | . . 2 Recycler 2 | . 2 . Operator 1 | . . 1 Watcher 6 | . 2 4 Swarmer 12 | . 6 6 Grunt 10 | . 6 4 Sentry 2 | . . 2 Best Kill Streak 13 | . 5 13 Combat Bots Only 4 | . 4 3 Max Kills in Single Turn 2 | . 1 2 Gunslinging . | . . . Exploded 1 | . . 1 Melee . | . . . Uniques/NPCs Destroyed . | . . . Combat | -11 -10 -9 -------- Run | Yrd Mat Mat Hostile Shots Fired 134 | . 83 51 Missed 42 | . 24 18 Damage Taken 988 | . 554 434 Core 205 | . 105 100 Absorbed by Shields . | . . . Core Remaining (%) 79 | 100 58 . Volleys Fired 98 | . 63 35 Largest 2 | . 2 2 Hottest 103 | . 40 103 Shots Fired 172 | . 104 68 Gun 133 | . 104 29 Cannon 27 | . . 27 Launcher 12 | . . 12 Special . | . . . Kinetic 132 | . 104 28 Thermal 4 | . . 4 Explosive 12 | . . 12 Electromagnetic 24 | . . 24 Robot Hit Streak 11 | . 11 5 Robot Miss Streak 5 | . 4 5 Penetration Max . | . . . Secondary Targets 2 | . 2 . Max Gunslinging Chain 1 | . 1 . Shots Hit Robots 99 | . 64 35 Core Hits 57 | . 28 29 Critical Kills 1 | . 1 . Critical Parts Destroyed . | . . . Critical Strikes 2 | . 1 1 Destroy 1 | . 1 . Blast 1 | . . 1 Melee Attacks . | . . . Impact . | . . . Slashing . | . . . Piercing . | . . . Sneak Attacks . | . . . Combat Hostiles . | . . . Follow-up Attacks . | . . . Damage Inflicted 1961 | . 680 1281 Guns 947 | . 680 267 Cannons 389 | . . 389 Explosions 625 | . . 625 Melee . | . . . Ramming . | . . . Kinetic 1023 | . 680 343 Thermal 83 | . . 83 Explosive 625 | . . 625 Electromagnetic 230 | . . 230 Impact . | . . . Slashing . | . . . Piercing . | . . . Highest Corruption . | . . . Average Corruption . | . . . Corruption Purged . | . . . Corruption Blocked . | . . . Overload Shots . | . . . Overflow Damage 56 | . . 56 Projectiles . | . . . Explosions 56 | . . 56 Melee . | . . . Knockbacks 1 | . . 1 Impact . | . . . Kinetic 1 | . . 1 Secondary . | . . . Self-Inflicted Damage 84 | . . 84 Shots 3 | . . 3 Rammed . | . . . Targets Rammed . | . . . Kicked . | . . . Crushed . | . . . Highest Temperature 135 | . 18 135 Average Temperature 25 | . 7 30 Received Heat Transfer 264 | . 186 78 Siege Activations . | . . . Robots Corrupted . | . . . Combat Hostiles . | . . . Parts Fried 3 | . . 3 Impact Corruptions . | . . . Robots Melted . | . . . Combat Hostiles . | . . . Parts Melted . | . . . Heat Transferred 148 | . . 148 Parts Sabotaged . | . . . Parts Stolen . | . . . Parts Stripped . | . . . Power Chain Reactions . | . . . Alert | -11 -10 -9 ------- Run | Yrd Mat Mat Peak Influence 436 | . 254 436 Initial . | . . . Average 85 | . 94 84 Maximum Alert Level 2 | . 1 2 Low Security (%) 89 | 100 88 89 Level 1 10 | . 11 9 Level 2 . | . . . Level 3 . | . . . Level 4 . | . . . Level 5 . | . . . High Security . | . . . Max Security . | . . . Squads Dispatched 4 | . 2 2 Investigation 1 | . 1 . Extermination . | . . . Reinforcement 3 | . 1 2 Assault . | . . . Garrison . | . . . Intercept . | . . . Searches Triggered . | . . . Construction Impeded . | . . . Haulers Reinforced . | . . . Active Scanning Responses . | . . . Cargo Convoy Interrupts . | . . . Stealth | -11 -10 -9 --------- Run | Yrd Mat Mat Distress Signals 5 | . 4 1 Communications Jammed . | . . . Distress Signals . | . . . Times Spotted 36 | . 14 22 Peak Tracking Total 5 | . 3 5 Tactical Retreats . | . . . Traps | -11 -10 -9 ------- Run | Yrd Mat Mat Traps Triggered 1 | . 1 . Indirectly . | . . . Trap Hack Attempts . | . . . Triggered . | . . . Disarmed . | . . . Reprogrammed . | . . . Reused . | . . . Traps Extracted . | . . . Installed . | . . . Triggered . | . . . Machines | -11 -10 -9 ---------- Run | Yrd Mat Mat Machines Disabled 5 | . . 5 Max in Single Turn 2 | . . 2 Machines Repaired . | . . . Machines Dismantled . | . . . Machines Sabotaged . | . . . Overloaded Fab Kills . | . . . Hacking | -11 -10 -9 --------- Run | Yrd Mat Mat Machines Accessed . | . . . Terminals . | . . . Fabricators . | . . . Repair Stations . | . . . Recycling Units . | . . . Scanalyzers . | . . . Garrison Access . | . . . Total Hacks . | . . . Successful . | . . . Failed . | . . . Catastrophic . | . . . Database Lockouts . | . . . Manual . | . . . Terminals . | . . . Fabricators . | . . . Repair Stations . | . . . Recycling Units . | . . . Scanalyzers . | . . . Garrison Access . | . . . Terminal Hacks . | . . . Fabricator Hacks . | . . . Repair Station Hacks . | . . . Recycling Unit Hacks . | . . . Scanalyzer . | . . . Garrison Access Hacks . | . . . Unauthorized Hacks . | . . . Terminals . | . . . Fabricators . | . . . Repair Stations . | . . . Recycling Units . | . . . Scanalyzers . | . . . Garrison Access . | . . . Data Cores Recovered . | . . . Used . | . . . Hacking Detections . | . . . Full Trace Events . | . . . Feedback Events . | . . . Feedback Blocked . | . . . Robot Schematics Acquired . | . . . Robots Built . | . . . Authchips . | . . . Time . | . . . Total Robot Build Rating . | . . . Part Schematics Acquired . | . . . Parts Built . | . . . Authchips . | . . . Time . | . . . Total Part Build Rating . | . . . Parts Repaired . | . . . Time . | . . . Parts Recycled . | . . . Recycled Matter . | . . . Retrieved Matter . | . . . Retrieved Components . | . . . Parts Scanalyzed . | . . . Part Schematics Acquired . | . . . Parts Damaged . | . . . Bothacking | -11 -10 -9 ------------ Run | Yrd Mat Mat Used RIF Installer . | . . . Robots Hacked . | . . . Non-combat . | . . . Combat . | . . . Robot Hacks Applied . | . . . Relay Couplers Released . | . . . Fabnet Peak Effective % . | . . . Robots Rewired . | . . . Allies Hacked . | . . . Hacks Repelled . | . . . Allies | -11 -10 -9 -------- Run | Yrd Mat Mat Total Allies . | . . . Largest Group . | . . . Highest-Rated Group . | . . . Highest-Rated Ally . | . . . Total Orders . | . . . Ally Attacks . | . . . Total Damage . | . . . Kills . | . . . Allies Corrupted . | . . . Allies Melted . | . . . Intel | -11 -10 -9 ------- Run | Yrd Mat Mat Robot Analysis Total . | . . . Derelict Logs Recovered . | . . . Drone Launches . | . . . Drone Recoveries . | . . . Exploration | -11 -10 -9 ------------- Run | Yrd Mat Mat Turns Passed 1819 | 87 1050 682 Spaces Moved 724 | 54 422 248 Core 471 | 9 214 248 Treads 253 | 45 208 . Legs . | . . . Wheels . | . . . Hover . | . . . Flight . | . . . Fastest Speed 50 | 50 160 50 Average Speed 208 | 141 205 229 Slowest Speed 250 | 160 250 250 Overloaded Moves . | . . . Propulsion Burnouts . | . . . Robots Hopped . | . . . Cave-ins Triggered . | . . . Exploration Rate (%) 31 | 4 54 35 Regions Visited 2 Branch Regions . Pre-discovered Areas . | . . . Known Exits Taken . | . . . Unknown Exits Taken 2 | 1 1 . Scrap Searched . | . . . Spaces Dug 8 | . . 8 Terrain Destroyed 63 | . . 63 Melee . | . . . Projectile . | . . . AOE 63 | . . 63 Terrain Rammed . | . . . Walls Destroyed . | . . . Machines Disabled . | . . . Actions | -11 -10 -9 --------- Run | Yrd Mat Mat Total 871 | 65 514 292 Wait 2 | . 2 . Move 722 | 53 421 248 Hop . | . . . Pick Up 20 | 6 11 3 Fast Attach . | . . . Attach 10 | 6 4 . Detach 2 | . 2 . Swap 10 | . 7 3 Drop 7 | . 4 3 Fire 98 | . 63 35 Melee . | . . . Ram . | . . . Kick . | . . . Crush . | . . . Escape Stasis . | . . . Rewire . | . . . Trap . | . . . Miscellaneous . | . . . Route ------- -11/Scrapyard -10/Materials (discovered 3 exits: [*Mat x3]) -9/Materials (discovered 2 exits: [*Min] / [*Sto]) History --------- Turn | Location | Event 4 | -11/Scrapyard | Discovered new exit (range 14) 88 | -11/Scrapyard | Entered Materials 228 | -10/Materials | Discovered new exit (range 16) 317 | -10/Materials | Build established: Mutant 327 | -10/Materials | Discovered new exit (range 14) 642 | -10/Materials | Discovered new exit (range 9) 1138 | -10/Materials | Entered another Materials area 1138 | -9/Materials | Evolved 2 slots: Power x2 1496 | -9/Materials | Discovered new exit (range 5) 1569 | -9/Materials | Discovered new exit (range 16) 1820 | -9/Materials | Self-destructed Last Messages --------------- 01784_ K-01 Serf collects debris. 01784_ U-05 Engineer lays Concrete. 01792_ U-05 Engineer destroyed. 01796_ R-06 Scavenger collects Signal Interpreter. 01802_ R-06 Scavenger collects Lgt. Ion Engine. 01806_ A-02 Transporter destroyed. 01808_ The unstable cave ceiling collapses. 01809_ Lgt. Armor Plating destroyed. 01809_ G-34 Mercenary destroyed. 01812_ Shock Rifle destroyed. 01813_ R-06 Scavenger collects Lgt. Ion Engine. 01813_ G-34 Mercenary destroyed. 01815_ Y-45 Defender destroyed. 01815_ Terminal disabled. 01815_ Electrolysis Chamber disabled. 01815_ Rocket Launcher destroyed. 01815_ Destroyed Rocket Launcher. 01816_ K-01 Serf collects debris. 01819_ Acquired 6 matter. Map ----- +----------------------------------------------------+ | ????????????????????????????????????? | | ????????????????????????????????????? | | ????????????????????????????????????? | | ?????????????????????????? ? ?????? | | ?????????????????????????# ? "?? ?? | | ?????????????????????????# ? "?" ? | | ?????????????????????????#^ ? """ ? | | ?????????????????????????# # "" ? | | ????????????????????????## # ?? | | ??????????????? ????????# # ### | | ?????????????? ??????# | | ???????????# #???# | | ???????????# #???? | | ???????????# #????? #? | | ???????????# ??????# #? | | ???????????# ??????# #? | | ???????????# = ???????# #? | | ?????????????# ######### #?? | | ??????######## | #?? | | ??????#[ ##? | | ??????#* ! ]] #? | | ??????#! ! * ] ] """ "" #? | | ?????## !]] == """ " #? | | ?????# * """ "" % ## | | ?????# *% !! r | | ?????# = % @k [ !=% % | | ?????# == | | ?????# #+## ## | | ?????## # # ^ ####+####? | | ??????# g# # " #????????? | | ??????+ # [ # T^ #????????? | | ??????# ?# !%![[!# " ^ #????????? | | ??????+ ?# !* [!!# #????????? | | ??????##??## [! # #????????? | | ???????????# ########????????? | | ??????????? """ #???????????????? | | ??????????## """ #???????????????? | | ???????????# #???????????????? | | ???????????##??######???????????????? | | ????????????????????????????????????? | | ????????????????????????????????????? | | ????????????????????????????????????? | | ????????????????????????????????????? | | ????????????????????????????????????? | | ????????????????????????????????????? | | ????????????????????????????????????? | | ????????????????????????????????????? | | ????????????????????????????????????? | | ????????????????????????????????????? | | ????????????????????????????????????? | +----------------------------------------------------+ Best States ------------- Heat Dissipation 35 Energy Generation 10 Energy Capacity 250 Matter Stores 300 Matter Capacity 300 Sight Range 16 Robot Scan Range 14 Terrain Scan Density 10 Armor Coverage 150 Evasion (%) 50 Recoil Reduction 2 Item Schematics ----------------- None Robot Schematics ------------------ None Fabricated ------------ Nothing Alien Tech Used ----------------- None Achievements -------------- Let's See Who's Tougher Challenges ------------ None Game ------ Seed TargetingBombCompressor Manual? 0 Play Time 00:15:29 Cumulative 7.0 hours Start 2024.03.01 @ 11:42:00 End 2024.03.01 @ 11:56:14 Sessions 1 Manual Loads 0 Difficulty Rogue Special Mode None Game No. 7 Rogue 7 Adventurer 0 Explorer 0 Win Type - Total 0 Types 0/0/0/0/0/0/0/0/0 Lore% 9 Gallery% 8 Achievement% 9 Wizard Run 0 Options --------- Layout 1 ASCII 0 Keyboard 0 Movement Mouse Keybinds 0 Fullscreen 2 Font 24/Smallcaps Map View 50x35 Zoom Use 0% Tactical HUD 1 Map Filters NONE Filters NONE Steam 1 RUN: f3864da4-3cee-4c0c-b374-d2a76ab99745